[Event "Early-Titled-Tuesday-Blitz-February-06-2024"]
[Site "Chess.com"]
[Date "2024.02.06"]
[Round "3"]
[White "FoxOnTheRun97"]
[Black "KaterynaLagno"]
[Result "1-0"]
[WhiteElo "2654"]
[BlackElo "2828"]
[TimeControl "180+1"]
[EndTime "8:28:27 PST"]
[Termination "FoxOnTheRun97 won by checkmate"]

1. d4 {[%clk 0:03:00.9]} 1... Nf6 {[%clk 0:02:59.8]} 2. Bg5 {[%clk 0:03:00.9]}
2... d5 {[%clk 0:02:58.9]} 3. Bxf6 {[%clk 0:03:00.9]} 3... gxf6 {[%clk
0:02:59.4]} 4. e3 {[%clk 0:03:01.4]} 4... c5 {[%clk 0:02:58.7]} 5. Nf3 {[%clk
0:02:59.9]} 5... Nc6 {[%clk 0:02:58.3]} 6. c4 {[%clk 0:02:52.5]} 6... cxd4
{[%clk 0:02:55.5]} 7. Nxd4 {[%clk 0:02:51.1]} 7... e5 {[%clk 0:02:37.1]} 8. Nxc6
{[%clk 0:02:27.2]} 8... bxc6 {[%clk 0:02:38]} 9. cxd5 {[%clk 0:02:27.7]} 9...
cxd5 {[%clk 0:02:33.9]} 10. Bb5+ {[%clk 0:02:26.9]} 10... Ke7 {[%clk 0:02:23.8]}
11. O-O {[%clk 0:02:09.7]} 11... Bb7 {[%clk 0:02:22.8]} 12. Nc3 {[%clk
0:02:01.3]} 12... Rg8 {[%clk 0:02:15.3]} 13. Qf3 {[%clk 0:01:35.2]} 13... Rb8
{[%clk 0:02:08.1]} 14. Rad1 {[%clk 0:01:14]} 14... Ke6 {[%clk 0:01:49.9]} 15.
Ne4 {[%clk 0:01:06.5]} 15... f5 {[%clk 0:01:45.5]} 16. Qh3 {[%clk 0:01:00.3]}
16... Qb6 {[%clk 0:01:28.9]} 17. Ng3 {[%clk 0:00:54.2]} 17... Rg5 {[%clk
0:01:03.8]} 18. Bd3 {[%clk 0:00:40.5]} 18... e4 {[%clk 0:00:56.9]} 19. Bc2
{[%clk 0:00:29.3]} 19... Kf6 {[%clk 0:00:46]} 20. Qxh7 {[%clk 0:00:24.9]} 20...
Qe6 {[%clk 0:00:36.6]} 21. Bb3 {[%clk 0:00:15.4]} 21... a5 {[%clk 0:00:33.6]}
22. Nh5+ {[%clk 0:00:15.5]} 22... Ke7 {[%clk 0:00:33.3]} 23. Nf4 {[%clk
0:00:16.4]} 23... Qe5 {[%clk 0:00:25.3]} 24. Qh4 {[%clk 0:00:15.7]} 24... Qf6
{[%clk 0:00:23]} 25. Bxd5 {[%clk 0:00:12.8]} 25... Rg4 {[%clk 0:00:20.4]} 26.
Qxf6+ {[%clk 0:00:12.5]} 26... Kxf6 {[%clk 0:00:21.3]} 27. Bxb7 {[%clk
0:00:12.9]} 27... Rxb7 {[%clk 0:00:21.2]} 28. b3 {[%clk 0:00:13.3]} 28... Bb4
{[%clk 0:00:18.6]} 29. Rd5 {[%clk 0:00:12.8]} 29... Rg8 {[%clk 0:00:16.9]} 30.
Ne2 {[%clk 0:00:11.5]} 30... Ke6 {[%clk 0:00:13.4]} 31. Nf4+ {[%clk 0:00:10.1]}
31... Kf6 {[%clk 0:00:13.2]} 32. Rfd1 {[%clk 0:00:10]} 32... Rc8 {[%clk
0:00:13.3]} 33. h4 {[%clk 0:00:09.7]} 33... Rc2 {[%clk 0:00:13.1]} 34. a4 {[%clk
0:00:09.4]} 34... Rb2 {[%clk 0:00:12.1]} 35. h5 {[%clk 0:00:05.5]} 35... Rxb3
{[%clk 0:00:11.6]} 36. Ne2 {[%clk 0:00:05.4]} 36... Ke6 {[%clk 0:00:05.8]} 37.
Ng3 {[%clk 0:00:04.9]} 37... f4 {[%clk 0:00:04.5]} 38. exf4 {[%clk 0:00:04.6]}
38... e3 {[%clk 0:00:05.1]} 39. f5+ {[%clk 0:00:04.9]} 39... Kf6 {[%clk
0:00:05.3]} 40. fxe3 {[%clk 0:00:04.9]} 40... Rxe3 {[%clk 0:00:06.2]} 41. Kf2
{[%clk 0:00:04.9]} 41... Ra3 {[%clk 0:00:05.5]} 42. Ne4+ {[%clk 0:00:04.4]}
42... Kg7 {[%clk 0:00:05.2]} 43. f6+ {[%clk 0:00:05]} 43... Kh7 {[%clk
0:00:05.8]} 44. Rg5 {[%clk 0:00:05]} 44... Kh6 {[%clk 0:00:05.8]} 45. Rg8 {[%clk
0:00:04]} 45... Bc3 {[%clk 0:00:02.9]} 46. Rh8# {[%clk 0:00:03.7]} 1-0

[Event "Early-Titled-Tuesday-Blitz-February-06-2024"]
[Site "Chess.com"]
[Date "2024.02.06"]
[Round "3"]
[White "dennisodessa"]
[Black "esrosenberg"]
[Result "0-1"]
[WhiteElo "2600"]
[BlackElo "2435"]
[TimeControl "180+1"]
[EndTime "8:28:27 PST"]
[Termination "esrosenberg won by resignation"]

1. d4 {[%clk 0:02:59.7]} 1... d5 {[%clk 0:02:27]} 2. c4 {[%clk 0:02:58.4]} 2...
c6 {[%clk 0:02:25.3]} 3. Nf3 {[%clk 0:02:58.4]} 3... Nf6 {[%clk 0:02:25.4]} 4.
e3 {[%clk 0:02:59.1]} 4... a6 {[%clk 0:02:25.1]} 5. Nbd2 {[%clk 0:02:58.3]} 5...
Bf5 {[%clk 0:02:19.9]} 6. Nh4 {[%clk 0:02:57.7]} 6... e6 {[%clk 0:02:13.2]} 7.
Nxf5 {[%clk 0:02:52.4]} 7... exf5 {[%clk 0:02:13.4]} 8. Bd3 {[%clk 0:02:53.3]}
8... g6 {[%clk 0:02:11.9]} 9. O-O {[%clk 0:02:54]} 9... b5 {[%clk 0:02:07.5]}
10. cxd5 {[%clk 0:02:51.5]} 10... Nxd5 {[%clk 0:02:02.9]} 11. Nb3 {[%clk
0:02:40.8]} 11... Bg7 {[%clk 0:02:00.7]} 12. Bd2 {[%clk 0:02:41.5]} 12... O-O
{[%clk 0:02:00.2]} 13. Rc1 {[%clk 0:02:42]} 13... Re8 {[%clk 0:01:58.6]} 14. Ba5
{[%clk 0:02:38.5]} 14... Qe7 {[%clk 0:01:56.1]} 15. Qf3 {[%clk 0:02:38.1]} 15...
Ra7 {[%clk 0:01:34.4]} 16. Nc5 {[%clk 0:02:28.2]} 16... Nd7 {[%clk 0:01:25.9]}
17. Rc2 {[%clk 0:02:10.8]} 17... Nxc5 {[%clk 0:01:22.7]} 18. Rxc5 {[%clk
0:02:11.7]} 18... f4 {[%clk 0:01:00.8]} 19. Rxc6 {[%clk 0:02:11]} 19... Nb4
{[%clk 0:00:58.7]} 20. Bxb4 {[%clk 0:01:56]} 20... Qxb4 {[%clk 0:00:59.6]} 21.
Qxf4 {[%clk 0:01:55.3]} 21... Qxb2 {[%clk 0:00:59.8]} 22. Rc2 {[%clk 0:01:49.9]}
22... Qa3 {[%clk 0:00:58.2]} 23. Be2 {[%clk 0:01:47.7]} 23... Rae7 {[%clk
0:00:54.7]} 24. h3 {[%clk 0:01:33.5]} 24... Qa4 {[%clk 0:00:54.1]} 25. Rd2
{[%clk 0:01:28.1]} 25... Qb4 {[%clk 0:00:49]} 26. Rfd1 {[%clk 0:01:28]} 26...
Re6 {[%clk 0:00:43.7]} 27. Bf3 {[%clk 0:01:24.2]} 27... Rf6 {[%clk 0:00:32.2]}
28. Qc7 {[%clk 0:01:23.9]} 28... Re7 {[%clk 0:00:29]} 29. Qb8+ {[%clk
0:01:05.1]} 29... Bf8 {[%clk 0:00:28.3]} 30. Rc2 {[%clk 0:00:59.7]} 30... Qd6
{[%clk 0:00:22.3]} 31. Rc8 {[%clk 0:00:54.8]} 31... Qxb8 {[%clk 0:00:21.9]} 32.
Rxb8 {[%clk 0:00:55.7]} 32... Rc7 {[%clk 0:00:21.4]} 33. Ra8 {[%clk 0:00:50.3]}
33... Kg7 {[%clk 0:00:20.4]} 34. e4 {[%clk 0:00:47.8]} 34... Rb6 {[%clk
0:00:15.4]} 35. e5 {[%clk 0:00:45.4]} 35... Rc2 {[%clk 0:00:14.5]} 36. d5 {[%clk
0:00:40.1]} 36... Bc5 {[%clk 0:00:13.7]} 37. d6 {[%clk 0:00:39]} 37... Rxf2
{[%clk 0:00:13.3]} 38. Kh1 {[%clk 0:00:39.8]} 38... Rxa2 {[%clk 0:00:11.6]} 39.
d7 {[%clk 0:00:38.4]} 39... Be7 {[%clk 0:00:12.2]} 40. Re8 {[%clk 0:00:38.7]}
40... Bh4 {[%clk 0:00:12]} 41. d8=Q {[%clk 0:00:30.9]} 41... Bxd8 {[%clk
0:00:11.9]} 42. Rdxd8 {[%clk 0:00:31.8]} 42... b4 {[%clk 0:00:10.6]} 43. Re7
{[%clk 0:00:28.3]} 43... b3 {[%clk 0:00:09.7]} 44. Rdd7 {[%clk 0:00:28.6]} 44...
b2 {[%clk 0:00:10.3]} 45. Rxf7+ {[%clk 0:00:28.7]} 45... Kh6 {[%clk 0:00:11]}
46. Be4 {[%clk 0:00:17.7]} 46... b1=Q+ {[%clk 0:00:10.3]} 47. Kh2 {[%clk
0:00:18.1]} 47... Qxe4 {[%clk 0:00:09.3]} 48. Rxh7+ {[%clk 0:00:13.4]} 48... Kg5
{[%clk 0:00:09.4]} 0-1

[Event "Early-Titled-Tuesday-Blitz-February-06-2024"]
[Site "Chess.com"]
[Date "2024.02.06"]
[Round "3"]
[White "the_blue_pill"]
[Black "ama18"]
[Result "0-1"]
[WhiteElo "2310"]
[BlackElo "2542"]
[TimeControl "180+1"]
[EndTime "8:28:31 PST"]
[Termination "ama18 won on time"]

1. d4 {[%clk 0:03:00.9]} 1... Nf6 {[%clk 0:02:57.1]} 2. Nf3 {[%clk 0:02:59.5]}
2... e6 {[%clk 0:02:57.2]} 3. Bf4 {[%clk 0:02:56.6]} 3... b6 {[%clk 0:02:57.5]}
4. e3 {[%clk 0:02:51.2]} 4... Bb7 {[%clk 0:02:56.5]} 5. Nbd2 {[%clk 0:02:49.9]}
5... Be7 {[%clk 0:02:54.7]} 6. h3 {[%clk 0:02:50.2]} 6... O-O {[%clk 0:02:53]}
7. Bd3 {[%clk 0:02:46.5]} 7... c5 {[%clk 0:02:52.4]} 8. c3 {[%clk 0:02:45.8]}
8... cxd4 {[%clk 0:02:51.2]} 9. exd4 {[%clk 0:02:44.6]} 9... d6 {[%clk
0:02:52.1]} 10. Bh2 {[%clk 0:02:40.9]} 10... Re8 {[%clk 0:02:51]} 11. O-O {[%clk
0:02:40.4]} 11... Nbd7 {[%clk 0:02:49.7]} 12. Re1 {[%clk 0:02:40.7]} 12... Qc7
{[%clk 0:02:49.5]} 13. Ne4 {[%clk 0:02:32.2]} 13... Bf8 {[%clk 0:02:47.8]} 14.
Nfg5 {[%clk 0:02:27.7]} 14... g6 {[%clk 0:02:42.3]} 15. Qf3 {[%clk 0:02:13.1]}
15... Bg7 {[%clk 0:02:36]} 16. Bxd6 {[%clk 0:02:01.5]} 16... Qc8 {[%clk
0:02:27.2]} 17. Nxf6+ {[%clk 0:01:49]} 17... Nxf6 {[%clk 0:02:28.1]} 18. Ne4
{[%clk 0:01:34.3]} 18... Nd7 {[%clk 0:02:07.4]} 19. Qg3 {[%clk 0:01:25.6]} 19...
Qc6 {[%clk 0:02:00.4]} 20. a4 {[%clk 0:01:16]} 20... a6 {[%clk 0:01:59]} 21. Bf4
{[%clk 0:01:12.1]} 21... f5 {[%clk 0:01:55.6]} 22. Nd6 {[%clk 0:01:06.7]} 22...
Nf6 {[%clk 0:01:51]} 23. Nxb7 {[%clk 0:01:00.6]} 23... Nh5 {[%clk 0:01:37.8]}
24. Qe3 {[%clk 0:00:59.5]} 24... Nxf4 {[%clk 0:01:35.7]} 25. Qxf4 {[%clk
0:00:57.5]} 25... Qxb7 {[%clk 0:01:35.7]} 26. Bc4 {[%clk 0:00:52.4]} 26... Qc6
{[%clk 0:01:30.5]} 27. Bb3 {[%clk 0:00:49.5]} 27... Kh8 {[%clk 0:01:30.4]} 28.
Re2 {[%clk 0:00:45]} 28... Re7 {[%clk 0:01:16.7]} 29. Rae1 {[%clk 0:00:44.4]}
29... Rae8 {[%clk 0:01:17.2]} 30. d5 {[%clk 0:00:41.9]} 30... Qc5 {[%clk
0:01:05]} 31. Rxe6 {[%clk 0:00:34.1]} 31... Rxe6 {[%clk 0:01:00.1]} 32. Rxe6
{[%clk 0:00:32.3]} 32... Rxe6 {[%clk 0:00:25.8]} 33. dxe6 {[%clk 0:00:33.2]}
33... Qf8 {[%clk 0:00:26.3]} 34. Qc7 {[%clk 0:00:27.1]} 34... Bf6 {[%clk
0:00:21]} 35. Qxb6 {[%clk 0:00:24.5]} 35... Be7 {[%clk 0:00:19.7]} 36. Qxa6
{[%clk 0:00:21.1]} 36... Qb8 {[%clk 0:00:19.4]} 37. Qb5 {[%clk 0:00:19.7]} 37...
Qd6 {[%clk 0:00:18.9]} 38. Qd7 {[%clk 0:00:18.8]} 38... Qc5 {[%clk 0:00:14.6]}
39. g3 {[%clk 0:00:12.3]} 39... Kg8 {[%clk 0:00:12.5]} 40. a5 {[%clk 0:00:10.4]}
40... Kf8 {[%clk 0:00:07.4]} 41. a6 {[%clk 0:00:10.7]} 41... Qe5 {[%clk
0:00:04.8]} 42. a7 {[%clk 0:00:07]} 42... Qe1+ {[%clk 0:00:04.7]} 43. Kg2 {[%clk
0:00:07.1]} 43... Qe4+ {[%clk 0:00:04.8]} 44. Kh2 {[%clk 0:00:07]} 44... Qf3
{[%clk 0:00:04.9]} 45. Qd4 {[%clk 0:00:01.1]} 45... Kg8 {[%clk 0:00:02]} 0-1

[Event "Early-Titled-Tuesday-Blitz-February-06-2024"]
[Site "Chess.com"]
[Date "2024.02.06"]
[Round "3"]
[White "Louis-Paulsen-Fan"]
[Black "Rawnsdale"]
[Result "0-1"]
[WhiteElo "2277"]
[BlackElo "2508"]
[TimeControl "180+1"]
[EndTime "8:28:32 PST"]
[Termination "Rawnsdale won by resignation"]

1. d4 {[%clk 0:02:56.7]} 1... d5 {[%clk 0:02:59.5]} 2. Nf3 {[%clk 0:02:56.8]}
2... e6 {[%clk 0:02:59.9]} 3. c4 {[%clk 0:02:56.4]} 3... Be7 {[%clk 0:03:00.2]}
4. Nc3 {[%clk 0:02:56.6]} 4... Nf6 {[%clk 0:03:00.7]} 5. Bg5 {[%clk 0:02:56.3]}
5... h6 {[%clk 0:03:00.7]} 6. Bh4 {[%clk 0:02:56]} 6... O-O {[%clk 0:03:00.4]}
7. e3 {[%clk 0:02:55.9]} 7... c5 {[%clk 0:03:00.1]} 8. cxd5 {[%clk 0:02:50.4]}
8... Nxd5 {[%clk 0:02:57.8]} 9. Bg3 {[%clk 0:02:49.5]} 9... Nc6 {[%clk 0:02:54]}
10. Bd3 {[%clk 0:02:48.5]} 10... cxd4 {[%clk 0:02:51.7]} 11. exd4 {[%clk
0:02:46.4]} 11... Bf6 {[%clk 0:02:43.9]} 12. Bc2 {[%clk 0:02:30]} 12... Ndb4
{[%clk 0:02:38.9]} 13. Bb1 {[%clk 0:02:15]} 13... Nxd4 {[%clk 0:02:32.5]} 14.
O-O {[%clk 0:02:14.9]} 14... Nbc6 {[%clk 0:01:59.9]} 15. Qd3 {[%clk 0:02:01.8]}
15... g6 {[%clk 0:01:57]} 16. Rd1 {[%clk 0:01:57.7]} 16... e5 {[%clk 0:01:54.1]}
17. Nxd4 {[%clk 0:01:31.4]} 17... exd4 {[%clk 0:01:49.7]} 18. Ne4 {[%clk
0:01:29.3]} 18... Bf5 {[%clk 0:01:48.8]} 19. Qb5 {[%clk 0:01:21.5]} 19... Bxe4
{[%clk 0:01:34.3]} 20. Bxe4 {[%clk 0:01:22.4]} 20... Qb6 {[%clk 0:01:32.7]} 21.
Qd3 {[%clk 0:01:11.7]} 21... Rad8 {[%clk 0:01:25.6]} 22. h4 {[%clk 0:01:10.9]}
22... Nb4 {[%clk 0:01:21.2]} 23. Qb3 {[%clk 0:01:10.7]} 23... Kg7 {[%clk
0:01:14.5]} 24. h5 {[%clk 0:01:09.3]} 24... gxh5 {[%clk 0:01:10.4]} 25. a3
{[%clk 0:01:07.1]} 25... Na6 {[%clk 0:00:54.5]} 26. Qf3 {[%clk 0:01:06.4]} 26...
Nc5 {[%clk 0:00:53.4]} 27. Bd5 {[%clk 0:00:57.4]} 27... Ne6 {[%clk 0:00:33.8]}
28. Ba2 {[%clk 0:00:39.8]} 28... h4 {[%clk 0:00:31.2]} 29. Qg4+ {[%clk
0:00:32.2]} 29... Ng5 {[%clk 0:00:30.8]} 30. Bxh4 {[%clk 0:00:29.8]} 30... d3
{[%clk 0:00:28.8]} 31. Rd2 {[%clk 0:00:23]} 31... Rd4 {[%clk 0:00:26.6]} 32. Qg3
{[%clk 0:00:18.8]} 32... Kh8 {[%clk 0:00:26]} 33. Bxg5 {[%clk 0:00:16]} 33...
Bxg5 {[%clk 0:00:25.9]} 34. Rxd3 {[%clk 0:00:16.3]} 34... Qxb2 {[%clk
0:00:18.9]} 35. Rxd4 {[%clk 0:00:11.5]} 35... Qxa1+ {[%clk 0:00:18.9]} 36. Kh2
{[%clk 0:00:10.5]} 36... Qxd4 {[%clk 0:00:19.2]} 37. Qb3 {[%clk 0:00:05.9]}
37... Bf4+ {[%clk 0:00:17.6]} 38. g3 {[%clk 0:00:03.4]} 38... Qxf2+ {[%clk
0:00:17.1]} 39. Kh3 {[%clk 0:00:03.9]} 39... Qxg3+ {[%clk 0:00:15.2]} 40. Qxg3
{[%clk 0:00:03.7]} 40... Bxg3 {[%clk 0:00:16.1]} 41. Kxg3 {[%clk 0:00:04.4]}
41... Kg7 {[%clk 0:00:17]} 42. Kf4 {[%clk 0:00:05]} 42... Rd8 {[%clk 0:00:17.8]}
43. Kf5 {[%clk 0:00:05.8]} 43... Rd2 {[%clk 0:00:17.9]} 44. Bc4 {[%clk
0:00:06.1]} 44... Rc2 {[%clk 0:00:18.2]} 45. Bb5 {[%clk 0:00:07]} 45... Rc3
{[%clk 0:00:18.3]} 46. Bd7 {[%clk 0:00:07.9]} 46... Rxa3 {[%clk 0:00:18.2]} 47.
Bc8 {[%clk 0:00:08.6]} 47... Ra5+ {[%clk 0:00:18.7]} 48. Kf4 {[%clk 0:00:08.2]}
48... b6 {[%clk 0:00:19.6]} 49. Bb7 {[%clk 0:00:08.5]} 49... Rc5 {[%clk
0:00:20.5]} 50. Ke4 {[%clk 0:00:08.5]} 50... a5 {[%clk 0:00:21.4]} 51. Kd4
{[%clk 0:00:09.3]} 51... a4 {[%clk 0:00:21.9]} 52. Bd5 {[%clk 0:00:09.9]} 52...
a3 {[%clk 0:00:22.8]} 53. Ba2 {[%clk 0:00:10.2]} 53... h5 {[%clk 0:00:22.5]} 54.
Bb3 {[%clk 0:00:10.5]} 54... h4 {[%clk 0:00:23.4]} 55. Ba2 {[%clk 0:00:11.3]}
55... h3 {[%clk 0:00:23.8]} 56. Bb3 {[%clk 0:00:12.2]} 56... h2 {[%clk
0:00:24.7]} 57. Bd5 {[%clk 0:00:13.1]} 57... a2 {[%clk 0:00:24.8]} 58. Bh1
{[%clk 0:00:14]} 58... a1=Q+ {[%clk 0:00:24.8]} 59. Kd3 {[%clk 0:00:12.9]} 59...
Qc3+ {[%clk 0:00:24.8]} 0-1

[Event "Early-Titled-Tuesday-Blitz-February-06-2024"]
[Site "Chess.com"]
[Date "2024.02.06"]
[Round "3"]
[White "matagordo"]
[Black "rubicapa"]
[Result "0-1"]
[WhiteElo "2230"]
[BlackElo "2460"]
[TimeControl "180+1"]
[EndTime "8:28:32 PST"]
[Termination "rubicapa won by resignation"]

1. d4 {[%clk 0:02:44.5]} 1... Nf6 {[%clk 0:02:58.2]} 2. Bf4 {[%clk 0:02:44]}
2... e6 {[%clk 0:02:50.3]} 3. e3 {[%clk 0:02:44]} 3... d5 {[%clk 0:02:50.9]} 4.
Nf3 {[%clk 0:02:44.5]} 4... c5 {[%clk 0:02:51.3]} 5. Nbd2 {[%clk 0:02:44.7]}
5... Nc6 {[%clk 0:02:51.5]} 6. c3 {[%clk 0:02:45.1]} 6... Bd6 {[%clk 0:02:51.8]}
7. Ne5 {[%clk 0:02:45.4]} 7... Qc7 {[%clk 0:02:50.3]} 8. Ndf3 {[%clk 0:02:45.3]}
8... O-O {[%clk 0:02:48]} 9. Bd3 {[%clk 0:02:45.8]} 9... b6 {[%clk 0:02:47]} 10.
h4 {[%clk 0:02:43.9]} 10... Bb7 {[%clk 0:02:31]} 11. h5 {[%clk 0:02:44]} 11...
Ne4 {[%clk 0:02:22.9]} 12. h6 {[%clk 0:02:41.8]} 12... g6 {[%clk 0:02:22.8]} 13.
Nxc6 {[%clk 0:02:36.5]} 13... Bxc6 {[%clk 0:02:22]} 14. Bxd6 {[%clk 0:02:37]}
14... Qxd6 {[%clk 0:02:21.6]} 15. Bxe4 {[%clk 0:02:30.6]} 15... dxe4 {[%clk
0:02:21]} 16. Ne5 {[%clk 0:02:30.8]} 16... Bb7 {[%clk 0:02:09]} 17. O-O {[%clk
0:02:23.1]} 17... cxd4 {[%clk 0:02:00.1]} 18. cxd4 {[%clk 0:02:15.4]} 18... f6
{[%clk 0:01:55.9]} 19. Nc4 {[%clk 0:02:11.1]} 19... Qd5 {[%clk 0:01:53.5]} 20.
Rc1 {[%clk 0:01:15.2]} 20... Rac8 {[%clk 0:01:40.8]} 21. b3 {[%clk 0:01:15.2]}
21... Rfd8 {[%clk 0:01:19.6]} 22. Re1 {[%clk 0:01:03.8]} 22... Ba6 {[%clk
0:01:02.9]} 23. Qg4 {[%clk 0:00:51.2]} 23... Kf7 {[%clk 0:00:34.1]} 24. Nd2
{[%clk 0:00:29.8]} 24... Bd3 {[%clk 0:00:33.3]} 25. f3 {[%clk 0:00:30.1]} 25...
exf3 {[%clk 0:00:20.7]} 26. Nxf3 {[%clk 0:00:31]} 26... Be4 {[%clk 0:00:15.2]}
27. Nd2 {[%clk 0:00:28]} 27... Bd3 {[%clk 0:00:14.7]} 28. e4 {[%clk 0:00:28.2]}
28... Qxd4+ {[%clk 0:00:14.8]} 29. Kh1 {[%clk 0:00:27]} 29... Qe5 {[%clk
0:00:13.6]} 30. Nf3 {[%clk 0:00:20.6]} 30... Qh5+ {[%clk 0:00:12.4]} 31. Qxh5
{[%clk 0:00:21.2]} 31... gxh5 {[%clk 0:00:13.3]} 32. e5 {[%clk 0:00:20]} 32...
Bg6 {[%clk 0:00:11]} 33. exf6 {[%clk 0:00:19.7]} 33... Kxf6 {[%clk 0:00:11.6]}
34. Kg1 {[%clk 0:00:19.5]} 34... Rxc1 {[%clk 0:00:10.7]} 35. Rxc1 {[%clk
0:00:19.1]} 35... Rd7 {[%clk 0:00:11.6]} 36. Kf2 {[%clk 0:00:18.9]} 36... e5
{[%clk 0:00:11.9]} 37. Rc6+ {[%clk 0:00:18.3]} 37... Kf5 {[%clk 0:00:11.8]} 38.
Nh4+ {[%clk 0:00:13.1]} 38... Kg5 {[%clk 0:00:11.9]} 39. Nf3+ {[%clk 0:00:13.5]}
39... Kf5 {[%clk 0:00:10.4]} 40. Nh4+ {[%clk 0:00:13.9]} 40... Kg5 {[%clk
0:00:09.9]} 41. Nf3+ {[%clk 0:00:14.1]} 41... Kxh6 {[%clk 0:00:10.6]} 42. Nxe5
{[%clk 0:00:13.6]} 42... Rd2+ {[%clk 0:00:10.3]} 43. Kg3 {[%clk 0:00:13]} 43...
Rxa2 {[%clk 0:00:10.5]} 44. Kh4 {[%clk 0:00:11.4]} 44... Rxg2 {[%clk 0:00:08.7]}
45. Nf7+ {[%clk 0:00:07.4]} 45... Kg7 {[%clk 0:00:07.9]} 46. Ng5 {[%clk
0:00:07.8]} 46... Rg4+ {[%clk 0:00:07.7]} 47. Kh3 {[%clk 0:00:07.5]} 47... Rxg5
{[%clk 0:00:08.3]} 48. Rc7+ {[%clk 0:00:08.2]} 48... Kh6 {[%clk 0:00:06.8]} 49.
Rxa7 {[%clk 0:00:08.9]} 49... Rb5 {[%clk 0:00:07.1]} 50. Ra3 {[%clk 0:00:08.2]}
50... Rb4 {[%clk 0:00:07.7]} 0-1

[Event "Early-Titled-Tuesday-Blitz-February-06-2024"]
[Site "Chess.com"]
[Date "2024.02.06"]
[Round "3"]
[White "mary-sanna"]
[Black "jlandaw"]
[Result "0-1"]
[WhiteElo "2192"]
[BlackElo "2425"]
[TimeControl "180+1"]
[EndTime "8:28:33 PST"]
[Termination "jlandaw won on time"]

1. d4 {[%clk 0:02:58.9]} 1... d5 {[%clk 0:02:59.4]} 2. c4 {[%clk 0:02:57.8]}
2... c6 {[%clk 0:02:59.7]} 3. Nf3 {[%clk 0:02:57.3]} 3... e6 {[%clk 0:03:00.1]}
4. g3 {[%clk 0:02:57.5]} 4... dxc4 {[%clk 0:03:00.2]} 5. Bg2 {[%clk 0:02:57.7]}
5... b5 {[%clk 0:03:00.5]} 6. O-O {[%clk 0:02:58]} 6... Bb7 {[%clk 0:03:00.9]}
7. a4 {[%clk 0:02:56.4]} 7... Nf6 {[%clk 0:03:00.5]} 8. Ne5 {[%clk 0:02:48]}
8... Qc7 {[%clk 0:03:00.1]} 9. b3 {[%clk 0:02:45]} 9... cxb3 {[%clk 0:02:59.2]}
10. Qxb3 {[%clk 0:02:40.9]} 10... a6 {[%clk 0:02:59.8]} 11. axb5 {[%clk
0:02:35.5]} 11... cxb5 {[%clk 0:02:59.2]} 12. Bf4 {[%clk 0:02:26.7]} 12... Bxg2
{[%clk 0:02:57.9]} 13. Kxg2 {[%clk 0:02:27.6]} 13... Nbd7 {[%clk 0:02:49.2]} 14.
Rc1 {[%clk 0:02:00.8]} 14... Qb7+ {[%clk 0:02:44.9]} 15. f3 {[%clk 0:02:00.9]}
15... Nd5 {[%clk 0:02:37]} 16. Nxd7 {[%clk 0:01:40.8]} 16... Nxf4+ {[%clk
0:02:01.5]} 17. gxf4 {[%clk 0:01:40.8]} 17... Qxd7 {[%clk 0:02:02.4]} 18. e3
{[%clk 0:01:39.1]} 18... Bd6 {[%clk 0:01:56.5]} 19. Nc3 {[%clk 0:01:36.9]} 19...
O-O {[%clk 0:01:56]} 20. Ne4 {[%clk 0:01:35.5]} 20... Rfb8 {[%clk 0:01:51.2]}
21. Rc2 {[%clk 0:01:29.9]} 21... a5 {[%clk 0:01:42]} 22. Nxd6 {[%clk 0:01:19.7]}
22... Qxd6 {[%clk 0:01:41.5]} 23. Rc5 {[%clk 0:01:20.2]} 23... Qa6 {[%clk
0:01:22.2]} 24. f5 {[%clk 0:00:58.2]} 24... exf5 {[%clk 0:01:20]} 25. Rc7 {[%clk
0:00:58.2]} 25... Qe6 {[%clk 0:01:13.8]} 26. Qc2 {[%clk 0:00:53]} 26... b4
{[%clk 0:01:03.7]} 27. Rc5 {[%clk 0:00:47]} 27... Qxe3 {[%clk 0:00:56]} 28.
Raxa5 {[%clk 0:00:40.4]} 28... Rxa5 {[%clk 0:00:43.2]} 29. Rc8+ {[%clk
0:00:39.5]} 29... Qe8 {[%clk 0:00:43.1]} 30. Rxe8+ {[%clk 0:00:39.1]} 30... Rxe8
{[%clk 0:00:44]} 31. Qc6 {[%clk 0:00:27.2]} 31... Rd8 {[%clk 0:00:37.4]} 32. Qb6
{[%clk 0:00:23.1]} 32... Rad5 {[%clk 0:00:37.4]} 33. Qxb4 {[%clk 0:00:22.4]}
33... Rxd4 {[%clk 0:00:37.6]} 34. Qb5 {[%clk 0:00:21.4]} 34... g6 {[%clk
0:00:36.6]} 35. Kg3 {[%clk 0:00:19.8]} 35... h5 {[%clk 0:00:34.7]} 36. h4 {[%clk
0:00:18.2]} 36... Rc8 {[%clk 0:00:25.7]} 37. Qb2 {[%clk 0:00:13.2]} 37... f4+
{[%clk 0:00:18.7]} 38. Kh3 {[%clk 0:00:12.6]} 38... Rd3 {[%clk 0:00:19.2]} 39.
Qb7 {[%clk 0:00:11.5]} 39... Rcc3 {[%clk 0:00:16.1]} 40. Qb8+ {[%clk 0:00:11.6]}
40... Kh7 {[%clk 0:00:14.9]} 41. Qf8 {[%clk 0:00:09.8]} 41... Rxf3+ {[%clk
0:00:15]} 42. Kg2 {[%clk 0:00:10.1]} 42... Rg3+ {[%clk 0:00:15.1]} 43. Kf2
{[%clk 0:00:09.6]} 43... Rc2+ {[%clk 0:00:15.5]} 44. Kf1 {[%clk 0:00:09.5]}
44... Rc7 {[%clk 0:00:15.6]} 45. Kf2 {[%clk 0:00:09.4]} 45... Rb3 {[%clk
0:00:11.2]} 46. Qd8 {[%clk 0:00:04.5]} 46... Rc2+ {[%clk 0:00:10.4]} 47. Ke1
{[%clk 0:00:04.8]} 47... Rb1+ {[%clk 0:00:10.6]} 0-1